bitfinex-derivatives/quotes_BTCF0:USTF0_20241226
["timestamp","ask_amount","ask_price","bid_price","bid_amount"]
[1735223828406,0.15766821,95650.0,95621.0,0.1597]
[1735223828599,0.10455876,95649.0,95621.0,0.1597]
[1735223828799,0.10455876,95649.0,95622.0,0.1464]
[1735223828993,0.01739245,95650.0,95630.0,0.15766821]
[1735223829200,0.10455876,95648.0,95630.0,0.15766821]
[1735223829399,0.17466817,95670.0,95630.0,0.15766821]
[1735223829601,0.26549613,95669.0,95630.0,0.15766821]
[1735223829799,0.10455876,95647.0,95630.0,0.15766821]
[1735223829997,0.01699996,95670.0,95637.0,0.15766821]
[1735223830200,0.15766821,95680.0,95639.0,0.01]
[1735223830397,0.15766821,95660.0,95630.0,0.001]
[1735223830604,0.15766821,95660.0,95630.0,0.15866821]
[1735223830800,0.104544,95659.0,95630.0,0.15866821]
[1735223831201,0.11911187,95668.0,95637.0,0.002]
[1735223831398,0.10455384,95669.0,95637.0,0.002]
[1735223831597,0.38055962,95669.0,95637.0,0.002]
[1735223831809,0.15689391,95669.0,95640.0,0.15766821]
[1735223832106,0.12347047,95781.0,95659.0,0.15766821]
[1735223832107,0.10455384,95668.0,95659.0,0.15766821]
[1735223832512,0.26928926,95698.0,95659.0,0.15766821]
[1735223832706,0.10454291,95667.0,95659.0,0.15766821]
[1735223833008,0.27145444,95697.0,95660.0,0.1571]
[1735223833208,0.15655815,95697.0,95660.0,0.1571]
[1735223833510,0.11489629,95696.0,95670.0,0.15766821]
[1735223833913,0.10451668,95695.0,95670.0,0.15766821]
[1735223834307,0.11744254,95698.0,95670.0,0.15766821]
[1735223834502,0.10451231,95694.0,95670.0,0.15766821]
[1735223834805,0.11744254,95698.0,95670.0,0.15766821]
[1735223835113,0.10451231,95693.0,95670.0,0.15866821]
[1735223835314,0.15766821,95720.0,95680.0,0.15766821]
[1735223835605,0.10451068,95692.0,95680.0,0.15766821]
[1735223835803,0.27533286,95709.0,95680.0,0.15766821]
[1735223835999,0.27533286,95733.0,95670.0,0.001]
[1735223836000,0.10451068,95691.0,95690.0,0.15766821]
[1735223836199,0.10451068,95691.0,95681.0,0.15766821]
[1735223836404,0.27268265,95717.0,95681.0,0.15766821]
[1735223836607,0.1570656,95718.0,95700.0,0.15766821]
[1735223836801,0.10450358,95729.0,95708.0,0.15766821]
[1735223837001,0.10450358,95729.0,95702.0,0.01]
[1735223837002,0.15766821,95750.0,95720.0,0.15766821]
[1735223837203,0.56058033,95805.0,95720.0,0.15766821]
[1735223837204,0.10450358,95729.0,95720.0,0.15766821]
[1735223837406,0.10450358,95729.0,95719.0,0.31533642]
[1735223837608,0.15766821,95770.0,95719.0,0.31533642]
[1735223837609,0.11305789,95755.0,95719.0,0.31533642]
[1735223837810,0.15766821,95760.0,95720.0,0.15766821]
[1735223838111,0.15766821,95730.0,95687.0,0.33530584]
[1735223838307,0.15766821,95710.0,95687.0,0.28133784]
[1735223838507,0.15766821,95720.0,95719.0,0.001]
[1735223838709,0.38237415,95729.0,95687.0,0.28133784]
[1735223838905,0.15766821,95710.0,95687.0,0.28133784]
[1735223839101,0.15766821,95700.0,95670.0,0.00156828]
[1735223839409,0.15766821,95680.0,95658.0,0.62965251]
[1735223839911,0.15766821,95680.0,95658.0,0.35176]
[1735223839912,0.27372175,95679.0,95658.0,0.35176]
[1735223840102,0.22141697,95679.0,95669.0,0.15766821]
[1735223840412,0.22141697,95679.0,95658.0,0.48970985]
[1735223840413,0.24296122,95710.0,95661.0,0.01]
[1735223840713,0.10452761,95699.0,95680.0,0.24296122]
[1735223840906,0.24296122,95720.0,95680.0,0.13794985]
[1735223841107,0.10452761,95698.0,95680.0,0.13794985]
[1735223841414,0.24296122,95700.0,95671.0,0.1566]
[1735223841614,0.1044932,95697.0,95671.0,0.1566]
[1735223841912,0.27520722,95699.0,95671.0,0.29454985]
[1735223842211,0.1044932,95696.0,95671.0,0.29454985]
[1735223842417,0.27251293,95698.0,95671.0,0.29454985]
[1735223842617,0.27251293,95695.0,95671.0,0.29454985]
[1735223842817,0.26215132,95695.0,95671.0,0.29454985]
[1735223843013,0.24356123,95710.0,95671.0,0.29454985]
[1735223843205,0.11530703,95694.0,95671.0,0.29454985]
[1735223843406,0.15711376,95694.0,95671.0,0.29454985]
[1735223843714,0.15621869,95695.0,95671.0,0.29454985]
[1735223843905,0.37472602,95693.0,95662.0,0.1594]
[1735223844105,0.10450358,95693.0,95671.0,0.001]
[1735223844310,0.01674465,95695.0,95671.0,0.001]
[1735223844522,0.37474022,95692.0,95662.0,0.1594]
[1735223844810,0.27115701,95694.0,95671.0,0.001]
[1735223845018,0.37157512,95691.0,95671.0,0.001]
[1735223845217,0.24296122,95690.0,95671.0,0.001]
[1735223845408,0.24296122,95690.0,95631.0,0.1595]
[1735223845605,0.24296122,95670.0,95631.0,0.15162]
[1735223845910,0.24296122,95650.0,95626.0,0.35172]
[1735223846511,0.27537266,95649.0,95626.0,0.35172]
[1735223846710,0.3799336,95649.0,95626.0,0.35172]
[1735223846917,0.24296122,95640.0,95609.0,0.1491]
[1735223847106,0.24296122,95640.0,95609.0,0.58704985]
[1735223847307,0.26631089,95639.0,95609.0,0.58704985]
[1735223847506,0.3708866,95639.0,95610.0,0.24296122]
[1735223847826,0.10457571,95639.0,95610.0,0.24296122]
[1735223848115,0.11306717,95638.0,95610.0,0.68091107]
[1735223848307,0.10457571,95639.0,95610.0,0.68091107]
[1735223848614,0.01708481,95640.0,95610.0,0.68091107]
[1735223848815,0.10457571,95638.0,95611.0,0.1579]
[1735223849120,0.24296122,95660.0,95611.0,0.1579]
[1735223849305,0.10457571,95637.0,95630.0,0.24296122]
[1735223849507,0.01716323,95670.0,95630.0,0.24296122]
[1735223849811,0.3758534,95668.0,95630.0,0.68091107]
[1735223850217,0.24296122,95680.0,95630.0,0.68091107]
[1735223850413,0.38312418,95667.0,95630.0,0.68091107]
[1735223850619,0.0016071,95655.0,95630.0,0.68091107]
[1735223851011,0.10454892,95654.0,95630.0,0.68091107]
[1735223851507,0.0016071,95642.0,95640.0,0.24296122]
[1735223851708,0.01679447,95655.0,95641.0,0.3084]
[1735223851921,0.24296122,95690.0,95648.0,0.00100045]
[1735223852221,0.37694866,95689.0,95650.0,0.24296122]
[1735223852412,0.27239209,95699.0,95650.0,0.24296122]
[1735223852607,0.37691915,95688.0,95650.0,0.68091107]
[1735223852918,0.27230488,95698.0,95669.0,0.00100045]
[1735223853112,0.26940564,95699.0,95669.0,0.00100045]
[1735223853318,0.10452706,95687.0,95669.0,0.4389503]
[1735223853614,0.15704326,95697.0,95669.0,0.4389503]
[1735223853819,0.10451122,95696.0,95683.0,0.00100045]
[1735223854019,0.27269255,95696.0,95683.0,0.00100045]
[1735223854314,0.10451122,95695.0,95683.0,0.4389503]
[1735223854815,0.11546561,95702.0,95683.0,0.4389503]
[1735223855006,0.10450467,95694.0,95689.0,0.00100045]
[1735223855209,0.24296122,95700.0,95689.0,0.00100045]
[1735223855412,0.24296122,95700.0,95661.0,0.2956]
[1735223855413,0.26583758,95693.0,95662.0,0.46422608]
[1735223855612,0.24296122,95690.0,95662.0,0.02627623]
[1735223855917,0.27699019,95689.0,95662.0,0.46422608]
[1735223856218,0.38149267,95689.0,95662.0,0.46422608]
[1735223856417,0.57699019,95689.0,95662.0,0.02627623]
[1735223856620,0.10451996,95688.0,95642.0,0.1465]
[1735223856815,0.24296122,95680.0,95649.0,0.43951836]
[1735223857015,0.26933425,95687.0,95649.0,0.43951836]
[1735223857215,0.11259278,95679.0,95649.0,0.43951836]
[1735223857411,0.15674147,95679.0,95649.0,0.43794985]
[1735223857617,0.24296122,95680.0,95642.0,0.2956]
[1735223857917,0.37408353,95678.0,95642.0,0.73354985]
[1735223858217,0.1569626,95679.0,95642.0,0.73354985]
[1735223858416,0.10958785,95677.0,95642.0,0.73354985]
[1735223858623,0.1045369,95677.0,95643.0,0.1514]
[1735223858927,0.15670747,95676.0,95643.0,0.1514]
[1735223859121,0.37529318,95676.0,95643.0,0.58934985]
[1735223859420,0.15670747,95677.0,95643.0,0.58934985]
[1735223859624,0.26124491,95675.0,95643.0,0.58934985]
[1735223859813,0.37529372,95675.0,95643.0,0.58934985]
[1735223860013,0.15668454,95682.0,95643.0,0.58934985]
[1735223860214,0.15668454,95682.0,95650.0,0.1576794]
[1735223860215,0.37497449,95674.0,95650.0,0.1576794]
[1735223860410,0.27043705,95674.0,95650.0,0.1576794]
[1735223860611,0.15668454,95681.0,95650.0,0.59562925]
[1735223860819,0.10453416,95673.0,95650.0,0.43794985]
[1735223861017,0.26537224,95684.0,95650.0,0.59562925]
[1735223861018,0.10924405,95680.0,95650.0,0.59562925]
[1735223861218,0.10453416,95672.0,95650.0,0.43794985]
[1735223861423,0.1576794,95660.0,95608.0,0.01]
[1735223861609,0.1576794,95640.0,95607.0,0.33496107]
[1735223861809,0.1576794,95640.0,95607.0,0.64811246]
[1735223862117,0.39244605,95659.0,95607.0,0.61711246]
[1735223862118,0.1576794,95630.0,95607.0,0.61711246]
[1735223862317,0.1576794,95630.0,95607.0,0.61211246]
[1735223862522,0.1576794,95630.0,95591.0,0.37496252]
[1735223862523,0.1576794,95620.0,95591.0,0.00056]
[1735223862718,0.1576794,95610.0,95574.0,0.35172]
[1735223862919,0.27655,95619.0,95580.0,0.1576794]
[1735223863218,0.1576794,95620.0,95580.0,0.1576794]
[1735223863408,0.37670205,95618.0,95580.0,0.47476745]
[1735223863610,0.15676501,95618.0,95580.0,0.47476745]
[1735223863813,0.1576794,95620.0,95580.0,0.47476745]
[1735223864019,0.18695296,95597.0,95580.0,0.47476745]
[1735223864229,0.18695296,95597.0,95580.0,0.32352805]
[1735223864417,0.10460305,95596.0,95580.0,0.32352805]
[1735223864614,0.10460305,95596.0,95581.0,0.3079]
[1735223865123,0.10460305,95596.0,95581.0,0.63142805]
[1735223865726,0.18695296,95599.0,95584.0,0.01]
[1735223865923,0.01697071,95596.0,95584.0,0.32352805]
[1735223866421,0.01697071,95596.0,95584.0,0.31809051]
[1735223866723,0.18695296,95599.0,95584.0,0.31809051]
[1735223866924,0.18695296,95605.0,95584.0,0.31809051]
[1735223867119,0.10461345,95598.0,95590.0,0.24340432]
[1735223867315,0.18695296,95605.0,95590.0,0.24340432]
[1735223867518,0.10460907,95597.0,95590.0,0.31809051]
[1735223867719,0.18695296,95605.0,95590.0,0.31809051]
[1735223868123,0.10460907,95604.0,95590.0,0.31809051]
[1735223868316,0.18695296,95610.0,95590.0,0.31809051]
[1735223868511,0.10460579,95603.0,95590.0,0.56149483]
[1735223868716,0.18695296,95610.0,95598.0,0.01]
[1735223868922,0.18695296,95610.0,95600.0,0.24340432]
[1735223869120,0.01572809,95620.0,95598.0,1.81809051]
[1735223869317,0.21811179,95626.0,95610.0,0.24340432]
[1735223869819,0.23380682,95626.0,95610.0,0.56149483]
[1735223870519,0.01569503,95626.0,95610.0,0.56149483]
[1735223870821,0.21811179,95650.0,95631.0,0.01]
[1735223871023,0.21811179,95650.0,95632.0,0.1556]
[1735223871320,0.10458281,95645.0,95632.0,0.1556]
[1735223871623,0.23378635,95650.0,95629.0,0.35184]
[1735223871624,0.11395476,95649.0,95629.0,0.35184]
[1735223871823,0.10455766,95644.0,95629.0,0.35184]
[1735223872121,0.27321315,95649.0,95629.0,0.35184]
[1735223872329,0.22033892,95649.0,95629.0,0.35184]
[1735223872530,0.11578126,95643.0,95629.0,0.35184]
[1735223872823,0.377773,95648.0,95629.0,0.35184]
[1735223873022,0.00084,95649.0,95629.0,0.35184]
[1735223873228,0.01567456,95650.0,95629.0,0.421586]
[1735223873420,0.10455985,95647.0,95629.0,0.421586]
[1735223873620,0.15698387,95648.0,95629.0,0.35184]
[1735223873820,0.11209425,95646.0,95629.0,0.421586]
[1735223874030,0.12040412,95647.0,95629.0,0.421586]
[1735223874224,0.15619954,95648.0,95629.0,0.421586]
[1735223874423,0.10455985,95645.0,95629.0,0.421586]
[1735223874625,0.54340432,95660.0,95629.0,0.421586]
[1735223874932,0.10456094,95644.0,95630.0,0.24340432]
[1735223875127,0.23353238,95665.0,95630.0,0.31315032]
[1735223875433,0.10456094,95657.0,95637.0,0.01]
[1735223875730,0.01542059,95665.0,95637.0,0.01]
[1735223875930,0.27938758,95678.0,95637.0,0.079746]
[1735223876233,0.10455056,95664.0,95640.0,0.24340432]
[1735223876421,0.27281729,95677.0,95640.0,0.24340432]
[1735223876422,0.00121015,95652.0,95640.0,0.24340432]
[1735223876621,0.00121015,95652.0,95640.0,0.31315032]
[1735223877134,0.10453963,95651.0,95640.0,0.069746]
[1735223877630,0.00121015,95646.0,95640.0,0.069746]
[1735223877930,0.27938758,95682.0,95640.0,0.069746]
[1735223877931,0.27938758,95682.0,95644.0,0.01]
[1735223878133,0.27938758,95682.0,95647.0,0.01]
[1735223878331,0.37161754,95681.0,95640.0,0.069746]
[1735223878837,0.26040431,95681.0,95647.0,0.01]
[1735223879129,0.10455274,95681.0,95650.0,0.24340432]
[1735223879332,0.10455274,95681.0,95648.0,0.1456]
[1735223879537,0.10455274,95681.0,95648.0,0.215346]
[1735223880736,0.11614757,95680.0,95648.0,0.215346]
[1735223881128,0.0160667,95682.0,95648.0,0.215346]
[1735223881335,0.10453198,95679.0,95648.0,0.215346]
[1735223881833,0.22047336,95678.0,95648.0,0.215346]
[1735223882032,0.22047336,95678.0,95648.0,0.069746]
[1735223882033,0.37743613,95678.0,95648.0,0.069746]
[1735223882239,0.67743613,95678.0,95648.0,0.069746]
[1735223882437,0.24340432,95670.0,95639.0,0.01]
[1735223882736,0.24340432,95650.0,95632.0,0.00056]
[1735223883052,0.36627568,95669.0,95632.0,0.006666]
[1735223883331,0.11513406,95649.0,95621.0,0.1552]
[1735223883538,0.159,95648.0,95621.0,0.1552]
[1735223883733,0.159,95648.0,95621.0,0.006666]
[1735223883938,0.24340432,95640.0,95611.0,0.35176]
[1735223884139,0.24340432,95640.0,95611.0,0.358426]
[1735223884442,0.26646434,95639.0,95611.0,0.358426]
[1735223884738,0.37103895,95639.0,95611.0,0.358426]
[1735223885034,0.67103895,95639.0,95611.0,0.358426]
[1735223885430,0.37103895,95639.0,95611.0,0.358426]
[1735223885740,0.21453798,95639.0,95611.0,0.358426]
[1735223886834,0.10457461,95639.0,95611.0,0.358426]
[1735223887040,0.11377569,95638.0,95611.0,0.358426]
[1735223887540,0.10457516,95637.0,95611.0,0.358426]
[1735223887936,0.24340432,95630.0,95611.0,0.35176]
[1735223888433,0.27462606,95629.0,95611.0,0.33676]
[1735223888645,0.37920614,95629.0,95611.0,0.343426]
[1735223888833,0.37920614,95629.0,95611.0,0.33676]
[1735223889142,0.67920614,95629.0,95611.0,0.33676]
[1735223889438,0.67920614,95629.0,95586.0,0.15612912]
[1735223889640,0.24340432,95620.0,95586.0,0.15556912]
[1735223889828,0.10550008,95629.0,95610.0,0.24340432]
[1735223890035,0.01583779,95638.0,95610.0,0.25007032]
[1735223890344,0.10458063,95628.0,95620.0,0.24340432]
[1735223890550,0.2966,95668.0,95620.0,0.25007032]
[1735223890837,0.26214893,95647.0,95621.0,0.1744]
[1735223891141,0.21739829,95647.0,95620.0,0.006666]
[1735223891739,0.21739829,95647.0,95620.0,0.25007032]
[1735223892336,0.005,95639.0,95620.0,0.25007032]
[1735223892643,0.005,95639.0,95603.0,0.1744]
[1735223892827,0.005,95639.0,95602.0,0.36216]
[1735223892828,0.24340432,95630.0,95602.0,0.36216]
[1735223893143,0.11555063,95629.0,95602.0,0.29185]
[1735223893333,0.27198089,95629.0,95602.0,0.29185]
[1735223893635,0.15643026,95629.0,95602.0,0.29185]
[1735223893841,0.10458555,95628.0,95602.0,0.29185]
[1735223894042,0.24912974,95620.0,95602.0,0.29185]
[1735223894439,0.24912974,95620.0,95600.0,0.15781234]
[1735223894636,0.10458555,95619.0,95610.0,0.15781234]
[1735223894834,0.35371529,95619.0,95610.0,0.15781234]
[1735223895234,0.01552643,95629.0,95611.0,0.29185]
[1735223895436,0.31043064,95656.0,95619.0,0.15781234]
[1735223895636,0.10458664,95646.0,95630.0,0.15781234]
[1735223895847,0.27938758,95646.0,95630.0,0.15781234]
[1735223896142,0.10458664,95645.0,95630.0,0.15781234]
[1735223896748,0.27938758,95646.0,95630.0,0.45781234]
[1735223896946,0.02095138,95647.0,95630.0,0.45781234]
[1735223897238,0.02095138,95647.0,95637.0,0.15781234]
[1735223897640,0.1045604,95646.0,95630.0,0.15781234]
[1735223897831,0.1045604,95646.0,95624.0,0.35184]
[1735223898434,0.1045604,95646.0,95630.0,0.24318528]
[1735223899340,0.1045604,95646.0,95624.0,0.35184]
[1735223900246,0.1045604,95646.0,95630.0,0.24318528]
[1735223900644,0.1045604,95646.0,95624.0,0.35184]
[1735223901043,0.24318528,95640.0,95624.0,0.35184]
[1735223901247,0.11036501,95645.0,95624.0,0.35184]
[1735223901443,0.12049836,95639.0,95624.0,0.35184]
[1735223901841,0.26038476,95644.0,95624.0,0.35184]
[1735223902041,0.12049836,95643.0,95624.0,0.35184]
[1735223902244,0.11826028,95638.0,95624.0,0.35184]
[1735223902443,0.1045675,95642.0,95624.0,0.35184]
[1735223902751,0.1564539,95641.0,95624.0,0.35184]
[1735223903248,0.10943553,95640.0,95602.0,0.35184]
[1735223903842,0.10456696,95639.0,95602.0,0.35184]
[1735223904249,0.11674132,95638.0,95602.0,0.35184]
[1735223904646,0.02095138,95647.0,95620.0,0.24318528]
[1735223904647,0.10458008,95637.0,95620.0,0.24318528]
[1735223904846,0.02095138,95647.0,95627.0,0.24318528]
[1735223905457,0.003,95630.0,95627.0,0.54318528]
[1735223905645,0.1776,95677.0,95629.0,0.29185]
[1735223905847,0.01541031,95678.0,95650.0,0.24318528]
[1735223906042,0.10456204,95676.0,95651.0,0.51574]
[1735223906243,0.32742129,95679.0,95651.0,0.51574]
[1735223906439,0.32654128,95679.0,95660.0,0.24318528]
[1735223906649,0.32654128,95679.0,95669.0,0.24318528]
[1735223906949,0.34037341,95687.0,95669.0,0.53503528]
[1735223907142,0.34037341,95687.0,95672.0,0.29185]
[1735223907541,0.34037341,95687.0,95672.0,0.59185]
[1735223907747,0.1,95700.0,95672.0,0.59185]
[1735223907945,0.1,95700.0,95684.0,0.24318528]
[1735223908351,0.1160052,95700.0,95685.0,0.29185]
[1735223908845,0.10450194,95699.0,95670.0,0.29185]
[1735223909244,0.222849,95699.0,95670.0,0.29185]
[1735223909647,0.15761055,95698.0,95664.0,0.00156809]
[1735223910053,0.28424706,95697.0,95664.0,0.00156809]
[1735223910351,0.15579949,95696.0,95664.0,0.00156809]
[1735223910841,0.11696043,95695.0,95664.0,0.00156809]
[1735223911041,0.22147493,95695.0,95664.0,0.00156809]
[1735223911249,0.15683377,95694.0,95680.0,0.24318528]
[1735223911454,0.1160052,95700.0,95680.0,0.24318528]
[1735223911656,0.1160052,95700.0,95690.0,0.24318528]
[1735223911847,0.1045074,95696.0,95681.0,0.1711]
[1735223912043,0.1160052,95700.0,95681.0,0.1711]
[1735223912354,0.1160052,95700.0,95690.0,0.24318528]
[1735223912753,0.1,95700.0,95690.0,0.24318528]
[1735223913149,0.1,95700.0,95682.0,0.1712]
[1735223913654,0.1,95700.0,95690.0,0.001]
[1735223913843,0.1,95700.0,95690.0,0.24418528]
[1735223914551,0.1,95700.0,95690.0,0.24318528]
[1735223914854,0.1,95700.0,95691.0,0.29185]
[1735223915753,0.103,95700.0,95691.0,0.29185]
[1735223915953,0.103,95700.0,95691.0,0.59185]
[1735223916146,0.1767,95738.0,95695.0,0.29185]
[1735223916346,0.1767,95738.0,95710.0,0.24318528]
[1735223916544,0.10449812,95737.0,95700.0,0.24318528]
[1735223916750,0.10449812,95737.0,95710.0,0.24318528]
[1735223916953,0.10449812,95737.0,95696.0,0.65164]
[1735223916954,0.10449812,95737.0,95700.0,0.24318528]
[1735223917143,0.10449812,95737.0,95710.0,0.24318528]
[1735223918252,0.10449812,95737.0,95720.0,0.24318528]
[1735223918452,0.10449812,95737.0,95710.0,0.24318528]
[1735223919058,0.00164493,95724.0,95710.0,0.24318528]
[1735223919454,0.00164493,95724.0,95720.0,0.001]
[1735223919855,0.00164493,95724.0,95720.0,0.301]
[1735223920161,0.1627,95769.0,95728.0,0.29185]
[1735223920456,0.1627,95769.0,95756.0,0.24318528]
[1735223920457,0.10447464,95765.0,95756.0,0.24318528]
[1735223921648,0.01595233,95766.0,95756.0,0.24318528]
[1735223921855,0.1932,95795.0,95756.0,0.24318528]
[1735223922159,0.46909406,95795.0,95770.0,0.24318528]
[1735223922359,0.10442719,95794.0,95770.0,0.24318528]
[1735223922655,0.26127131,95794.0,95770.0,0.24318528]
[1735223922860,0.11003825,95793.0,95770.0,0.24318528]
[1735223923059,0.11003825,95793.0,95780.0,0.24318528]
[1735223923257,0.15605845,95792.0,95780.0,0.24318528]
[1735223923565,0.1044032,95792.0,95780.0,0.24318528]
[1735223923956,0.1932,95795.0,95780.0,0.24318528]
[1735223924159,0.10439939,95791.0,95770.0,0.24318528]
[1735223924456,0.11813432,95794.0,95770.0,0.24318528]
[1735223924754,0.00142613,95782.0,95780.0,0.24318528]
[1735223925147,0.10440538,95781.0,95780.0,0.24318528]
[1735223925348,0.10440538,95781.0,95771.0,0.24318528]
[1735223925749,0.01535341,95796.0,95771.0,0.24318528]
[1735223925958,0.1,95800.0,95786.0,0.24318528]
[1735223926162,0.10440538,95794.0,95787.0,0.29185]
[1735223926465,0.24318528,95870.0,95787.0,0.29185]
[1735223926466,0.5838,95849.0,95788.0,0.29185]
[1735223926758,0.5838,95849.0,95787.0,0.3644]
[1735223926759,0.5838,95849.0,95810.0,0.24318528]
[1735223927061,0.26923635,95848.0,95801.0,0.29185]
[1735223927265,0.95983083,95848.0,95801.0,0.29185]
[1735223927456,1.25983083,95848.0,95801.0,0.29185]
[1735223927657,0.24318528,95840.0,95801.0,0.29185]
[1735223927853,0.24318528,95830.0,95780.0,0.24318528]
[1735223928060,0.393,95829.0,95780.0,0.24318528]
[1735223928373,0.24318528,95820.0,95770.0,0.24318528]
[1735223928570,0.1963,95828.0,95780.0,0.24318528]
[1735223928765,0.27556316,95819.0,95780.0,0.24318528]
[1735223928968,0.37920368,95827.0,95790.0,0.24318528]
[1735223929466,0.15647528,95818.0,95790.0,0.24318528]
[1735223929673,0.37468891,95826.0,95790.0,0.24318528]
[1735223929862,0.10437759,95826.0,95790.0,0.24318528]
[1735223930063,0.27009885,95825.0,95790.0,0.24318528]
[1735223930362,0.10437487,95825.0,95780.0,0.24318528]
[1735223930563,0.27092221,95827.0,95790.0,0.24318528]
[1735223930763,0.27092221,95824.0,95790.0,0.24318528]
[1735223931072,0.27258052,95826.0,95790.0,0.24318528]
[1735223931371,0.37504752,95823.0,95790.0,0.24318528]
[1735223931569,0.27067156,95825.0,95790.0,0.24318528]
[1735223931775,0.21812585,95822.0,95790.0,0.24318528]
[1735223931974,0.26129653,95822.0,95790.0,0.24318528]
[1735223932162,0.001,95827.0,95790.0,0.24318528]
[1735223932362,0.37493966,95821.0,95790.0,0.24318528]
[1735223932672,0.27056425,95826.0,95790.0,0.24318528]
[1735223932873,0.21781553,95820.0,95790.0,0.24318528]
[1735223933173,0.27102295,95826.0,95790.0,0.24318528]
[1735223933374,0.10437487,95819.0,95790.0,0.24318528]
[1735223933569,0.15758229,95825.0,95790.0,0.53503528]
[1735223933763,0.40976812,95828.0,95790.0,0.53503528]
[1735223933965,0.15564434,95826.0,95790.0,0.53503528]
[1735223934174,0.15564434,95824.0,95810.0,0.15715783]
[1735223934374,0.10437541,95825.0,95810.0,0.15715783]
[1735223934674,0.21218811,95828.0,95810.0,0.15715783]
[1735223934870,0.10436561,95827.0,95810.0,0.15715783]
[1735223935078,0.21218811,95828.0,95810.0,0.15715783]
[1735223935468,0.10436561,95826.0,95810.0,0.15715783]
[1735223935673,0.21218811,95828.0,95810.0,0.15715783]
[1735223935875,0.2016304,95828.0,95810.0,0.15715783]
[1735223936073,0.10436343,95827.0,95810.0,0.15715783]
[1735223936374,0.2016304,95828.0,95810.0,0.15715783]
[1735223936569,0.10436343,95826.0,95810.0,0.15715783]
[1735223936775,0.2016304,95828.0,95810.0,0.15715783]
[1735223936973,0.10436397,95825.0,95818.0,0.15715783]
[1735223937368,0.01588811,95828.0,95818.0,0.15715783]
[1735223937573,0.15715783,95870.0,95819.0,0.29185]
[1735223937773,0.15715783,95860.0,95830.0,0.15715783]
[1735223937982,0.10436071,95827.0,95820.0,0.15715783]
[1735223938169,0.27490963,95859.0,95820.0,0.15715783]
[1735223938476,0.10436071,95826.0,95805.0,0.29185]
[1735223938683,0.0018514,95840.0,95805.0,0.29185]
[1735223938980,0.10434111,95839.0,95830.0,0.15715783]
[1735223939369,0.09119251,95839.0,95830.0,0.15715783]
[1735223939676,0.1785,95859.0,95830.0,0.15715783]
[1735223939974,0.38229025,95858.0,95830.0,0.15715783]
[1735223940281,0.2779437,95858.0,95830.0,0.15715783]
[1735223940479,0.10434655,95857.0,95820.0,0.15715783]
[1735223940875,0.15715783,95850.0,95810.0,0.15815783]
[1735223941081,0.1893,95849.0,95810.0,0.15815783]
[1735223941379,0.15715783,95830.0,95799.0,0.29185]
[1735223941578,0.15715783,95830.0,95790.0,0.15715783]
[1735223941772,0.15715783,95820.0,95780.0,0.15715783]
[1735223942080,0.15715783,95810.0,95780.0,0.15715783]
[1735223942281,0.15715783,95810.0,95770.0,0.15715783]
[1735223942478,0.15715783,95800.0,95766.0,0.25139157]
[1735223942676,0.1965,95799.0,95766.0,0.25139157]
[1735223942873,0.4718334,95799.0,95770.0,0.15715783]
[1735223943075,0.10439503,95798.0,95770.0,0.15715783]
[1735223943482,0.26721587,95797.0,95770.0,0.15715783]
[1735223943676,0.26721587,95797.0,95780.0,0.15715783]
[1735223943874,0.11101021,95797.0,95780.0,0.15715783]
[1735223944179,0.10440157,95796.0,95780.0,0.15715783]
[1735223944681,0.15683783,95809.0,95780.0,0.15715783]
[1735223944880,0.10439721,95795.0,95780.0,0.15715783]
[1735223945078,0.15762473,95808.0,95780.0,0.15715783]
[1735223945383,0.10439721,95794.0,95790.0,0.15715783]
[1735223945682,0.15762473,95816.0,95790.0,0.15715783]
[1735223946073,0.15715783,95810.0,95780.0,0.15715783]
[1735223946482,0.2725798,95809.0,95780.0,0.15715783]
[1735223946675,0.00142588,95795.0,95780.0,0.15715783]
[1735223947287,0.10438958,95794.0,95780.0,0.15715783]
[1735223947582,0.00142588,95787.0,95770.0,0.34511103]
[1735223947884,0.00142588,95787.0,95753.0,0.25183604]
[1735223948069,0.64061008,95786.0,95753.0,0.24683604]
[1735223948276,0.15715783,95780.0,95753.0,0.24683604]
[1735223948470,0.15715783,95780.0,95740.0,0.15715783]
[1735223948676,0.00142588,95760.0,95750.0,0.15715783]
[1735223948877,0.00142588,95760.0,95750.0,0.14675784]
[1735223949088,0.15858371,95760.0,95737.0,0.24982518]
[1735223949283,0.11653812,95759.0,95737.0,0.24982518]
[1735223949482,0.10442064,95759.0,95740.0,0.15715783]
[1735223949678,0.00142588,95750.0,95740.0,0.15715783]
[1735223950175,0.00142588,95750.0,95730.0,0.34511103]
[1735223950376,0.00142588,95750.0,95730.0,0.64511103]
[1735223950580,0.00142588,95750.0,95740.0,0.15715783]
[1735223950777,0.00142588,95745.0,95730.0,0.34567103]
[1735223950971,0.00142588,95745.0,95731.0,0.1801]
[1735223951781,0.00142588,95738.0,95731.0,0.1801]
[1735223952381,0.02006818,95758.0,95731.0,0.4801]
[1735223952583,0.6643,95786.0,95748.0,0.15715783]
[1735223952784,0.26152671,95769.0,95748.0,0.15715783]
[1735223952986,0.26875911,95785.0,95740.0,0.15715783]
[1735223952987,0.15715783,95780.0,95740.0,0.15715783]
[1735223953188,0.10444464,95768.0,95740.0,0.15715783]
[1735223953577,0.15715783,95780.0,95740.0,0.15715783]
[1735223953782,0.37134181,95767.0,95740.0,0.15715783]
[1735223953981,0.26689717,95778.0,95750.0,0.15715783]
[1735223954290,0.10443427,95766.0,95740.0,0.15715783]
[1735223954490,0.27547053,95777.0,95740.0,0.15715783]
[1735223954676,0.10443537,95765.0,95732.0,0.1879532]
[1735223955183,0.15715783,95770.0,95732.0,0.1879532]
[1735223955383,0.1567237,95764.0,95732.0,0.1879532]
[1735223955587,0.10906956,95764.0,95732.0,0.1879532]
[1735223955780,0.10444082,95763.0,95732.0,0.1879532]
[1735223955981,0.37023408,95763.0,95732.0,0.1879532]
[1735223956180,0.10906956,95763.0,95732.0,0.1879532]
[1735223956387,0.10444082,95762.0,95732.0,0.1879532]
[1735223956690,0.1558402,95762.0,95732.0,0.1879532]
[1735223956890,0.1558402,95768.0,95732.0,0.1879532]
[1735223957090,0.26090374,95761.0,95732.0,0.1879532]
[1735223957292,0.15646183,95761.0,95732.0,0.1879532]
[1735223957588,0.11135119,95769.0,95731.0,0.1801]
[1735223957589,0.26090374,95760.0,95731.0,0.1801]
[1735223957886,0.2028,95760.0,95750.0,0.001]
[1735223958084,0.35995783,95760.0,95750.0,0.001]
[1735223958290,0.26209714,95759.0,95750.0,0.001]
[1735223958588,0.26209714,95759.0,95724.0,0.35124]
[1735223958589,0.2177,95758.0,95724.0,0.35124]
[1735223958787,0.15715783,95750.0,95724.0,0.35124]
[1735223959092,0.15605681,95749.0,95724.0,0.35124]